[Event "86th Tata Steel Tienkamp 2024"]
[Site "Wijk aan Zee"]
[Date "2024.01.21"]
[Round "3.3"]
[White "De Winter, Arthur"]
[Black "Bekker, Stefan"]
[Result "0-1"]
[ECO "B99"]
[WhiteElo "2409"]
[BlackElo "2274"]
[Annotator "RC"]
[PlyCount "84"]
[EventDate "2024.01.02"]
[EventType "tourn"]
[EventCountry "NED"]
[SourceTitle "playchess.com"]
[Source "ChessBase"]
[SourceQuality "1"]
[TimeControl "40/6000+30:20/3000+30:900+30"]

1. e4 {[%emt 0:10:03]} c5 {[%emt 0:10:04]} 2. Nf3 {[%emt 0:00:04]} d6 {[%emt 0:00:04]} 3. d4 {[%emt 0:00:03]} cxd4 {[%emt 0:00:04]} 4. Nxd4 {[%emt 0:00:03]} Nf6 {[%emt 0:00:06]} 5. Nc3 {[%emt 0:00:03]} a6 {[%emt 0:00:05]} 6. Bg5 {[%emt 0:00:04]} e6 {[%emt 0:00:53]} 7. f4 {[%emt 0:00:03]} Be7 {[%emt 0:00:04]} 8. Qf3 {[%emt 0:00:05]} Qc7 {[%emt 0:00:05]} 9. O-O-O {[%emt 0:00:06]} Nbd7 {[%emt 0:00:10]} 10. g4 {[%emt 0:00:13]} h6 {[%emt 0:00:13]} 11. Qh3 {[%emt 0:02:33]} Nc5 {[%emt 0:01:35]} 12. Bg2 {[%emt 0:00:44]} Rg8 {[%emt 0:00:05]} 13. Bxf6 {[%emt 0:02:46]} Bxf6 {[%emt 0:00:08]} 14. b4 {[%emt 0:00:36]} Nd7 {[%emt 0:00:05]} 15. g5 {[%emt 0:02:10]} hxg5 {[%emt 0:00:08]} 16. e5 {[%emt 0:00:11]} Nxe5 {[%emt 0:00:05]} 17. fxe5 {[%emt 0:00:02]} Bxe5 {[%emt 0:00:09]} 18. Rhe1 {[%emt 0:01:31]} Bd7 {[%emt 0:00:52]} 19. Rxe5 {[%emt 0:01:38]} dxe5 {[%emt 0:00:58]} 20. Nb3 {[%emt 0:00:06]} Rd8 {[%emt 0:00:03]} 21. Nc5 {[%emt 0:20:09]} Bc8 {[%emt 0:00:39]} 22. Rf1 {[%emt 0:10:40]} b6 {[%emt 0:12:57]} 23. Qh7 {[%emt 0:08:05]} Ke7 {[%emt 0:16:54]} 24. N5e4 {[%emt 0:01:25]} Bb7 {[%emt 0:01:13]} 25. Qh5 {[%emt 0:23:22]} Rdf8 {[%emt 0:12:07]} 26. Qxg5+ {[%emt 0:01:51]} f6 {[%emt 0:00:32]} 27. Qe3 {[%emt 0:03:56]} Rc8 {[%emt 0:02:55]} 28. Rf2 {[%emt 0:00:20]} Rcd8 {[%emt 0:04:45]} 29. Nd2 {[%emt 0:03:33]} Rd4 {[%emt 0:04:38]} 30. Bxb7 {[%emt 0:01:13]} Qxb7 {[%emt 0:00:07]} 31. a3 {[%emt 0:04:03]} Qc6 {[%emt 0:03:08]} 32. Qg3 {[%emt 0:02:19]} g5 {[%emt 0:08:28]} 33. Ne2 {[%emt 0:03:09]} Rh4 {[%emt 0:01:08]} 34. Rf3 {[%emt 0:00:43]} Rc8 {[%emt 0:01:44]} 35. Rc3 {[%emt 0:00:10]} Qh1+ {[%emt 0:00:40]} 36. Kb2 {[%emt 0:00:13]} Rxc3 {[%emt 0:02:08]} 37. Qxc3 {[%emt 0:00:06]} Qd5 {[%emt 0:01:13]} 38. h3 {[%emt 0:01:02]} Kf7 {[%emt 0:05:45]} 39. Qc7+ {[%emt 0:02:27]} Kg6 {[%emt 0:00:47]} 40. Nf1 {[%emt 0:00:07]} Qf3 {[%emt 0:03:07]} 41. Qd8 {[%emt 0:54:53]} Rxh3 {[%emt 0:50:27]} 42. Qg8+ {[%emt 0:00:42]} Kf5 {[%emt 0:00:24]} 0-1

[Event "86th Tata Steel Tienkamp 2024"]
[Site "Wijk aan Zee"]
[Date "2024.01.21"]
[Round "3.4"]
[White "Holzke, Frank"]
[Black "Baselmans, Luuk"]
[Result "1/2-1/2"]
[ECO "B27"]
[WhiteElo "2460"]
[BlackElo "2323"]
[Annotator "RC"]
[PlyCount "112"]
[EventDate "2024.01.02"]
[EventType "tourn"]
[EventCountry "NED"]
[SourceTitle "playchess.com"]
[Source "ChessBase"]
[SourceQuality "1"]
[TimeControl "40/6000+30:20/3000+30:900+30"]

1. e4 {[%emt 0:10:07]} c5 {[%emt 0:10:11]} 2. Nf3 {[%emt 0:00:19]} Nc6 {[%emt 0:00:07]} 3. Bb5 {[%emt 0:00:27]} g6 {[%emt 0:01:41]} 4. Bxc6 {[%emt 0:00:15]} bxc6 {[%emt 0:01:08]} 5. d4 {[%emt 0:00:11]} cxd4 {[%emt 0:05:40]} 6. Qxd4 {[%emt 0:00:22]} Nf6 {[%emt 0:00:11]} 7. e5 {[%emt 0:06:17]} Nd5 {[%emt 0:00:55]} 8. e6 {[%emt 0:00:33]} f6 {[%emt 0:02:49]} 9. exd7+ {[%emt 0:00:34]} Qxd7 {[%emt 0:03:00]} 10. O-O {[%emt 0:00:57]} Bg7 {[%emt 0:07:35]} 11. c4 {[%emt 0:15:45]} Nc7 {[%emt 0:05:26]} 12. Re1 {[%emt 0:07:57]} e5 {[%emt 0:08:43]} 13. Qxd7+ {[%emt 0:04:43]} Bxd7 {[%emt 0:00:10]} 14. b3 {[%emt 0:01:02]} O-O {[%emt 0:04:24]} 15. Bb2 {[%emt 0:04:10]} Rfd8 {[%emt 0:06:17]} 16. Nbd2 {[%emt 0:01:56]} Bf5 {[%emt 0:10:10]} 17. Nf1 {[%emt 0:05:22]} a5 {[%emt 0:02:39]} 18. Rad1 {[%emt 0:04:19]} Bf8 {[%emt 0:04:45]} 19. Ne3 {[%emt 0:04:04]} Bd3 {[%emt 0:06:33]} 20. Ng4 {[%emt 0:02:33]} Bg7 {[%emt 0:00:43]} 21. h4 {[%emt 0:12:15]} h5 {[%emt 0:01:25]} 22. Ne3 {[%emt 0:02:13]} Bf8 {[%emt 0:03:09]} 23. a3 {[%emt 0:03:50]} Bc5 {[%emt 0:01:40]} 24. Rd2 {[%emt 0:01:22]} Ne6 {[%emt 0:08:53]} 25. Red1 {[%emt 0:01:02]} Be4 {[%emt 0:00:13]} 26. Rxd8+ {[%emt 0:00:39]} Rxd8 {[%emt 0:00:06]} 27. Rxd8+ {[%emt 0:00:18]} Nxd8 {[%emt 0:00:05]} 28. Nd2 {[%emt 0:00:22]} Bd3 {[%emt 0:00:30]} 29. Bc3 {[%emt 0:00:40]} Bxa3 {[%emt 0:00:43]} 30. Bxa5 {[%emt 0:00:30]} Ne6 {[%emt 0:00:24]} 31. g3 {[%emt 0:02:14]} Nd4 {[%emt 0:02:34]} 32. Kg2 {[%emt 0:01:11]} Bc1 {[%emt 0:00:54]} 33. Bc3 {[%emt 0:03:02]} Bxd2 {[%emt 0:01:14]} 34. Bxd2 {[%emt 0:00:07]} Nxb3 {[%emt 0:00:08]} 35. Bc3 {[%emt 0:00:27]} Kf7 {[%emt 0:02:06]} 36. f4 {[%emt 0:00:58]} Ke6 {[%emt 0:01:21]} 37. fxe5 {[%emt 0:01:24]} fxe5 {[%emt 0:00:08]} 38. g4 {[%emt 0:02:18]} Nd4 {[%emt 0:04:22]} 39. gxh5 {[%emt 0:01:09]} gxh5 {[%emt 0:00:06]} 40. Ba5 {[%emt 0:03:41]} Ne2 {[%emt 0:05:31]} 41. Bc7 {[%emt 0:53:52]} Nf4+ {[%emt 0:22:27]} 42. Kg3 {[%emt 0:00:00]} Ng6 {[%emt 0:00:20]} 43. c5 {[%emt 0:00:00]} Ne7 {[%emt 0:02:40]} 44. Bd6 {[%emt 0:00:00]} Nd5 {[%emt 0:00:39]} 45. Nd1 {[%emt 0:00:00]} Kf5 {[%emt 0:02:34]} 46. Nf2 {[%emt 0:00:00]} Bc2 {[%emt 0:01:57]} 47. Nh3 {[%emt 0:00:00]} e4 {[%emt 0:04:41]} 48. Nf4 {[%emt 0:00:00]} Bd1 {[%emt 0:00:11]} 49. Nxd5 {[%emt 0:00:00]} cxd5 {[%emt 0:00:06]} 50. c6 {[%emt 0:00:00]} Ba4 {[%emt 0:05:12]} 51. c7 {[%emt 0:00:00]} Bd7 {[%emt 0:00:05]} 52. Bf8 {[%emt 0:00:00]} Ke5 {[%emt 0:03:27]} 53. Bg7+ {[%emt 0:00:00]} Kd6 {[%emt 0:00:07]} 54. Kf4 {[%emt 0:00:00]} Kxc7 {[%emt 0:00:36]} 55. Ke3 {[%emt 0:00:00]} Kd6 {[%emt 0:00:09]} 56. Bb2 {[%emt 0:00:00]} Ke6 {[%emt 0:00:15]} 1/2-1/2

[Event "86th Tata Steel Tienkamp 2024"]
[Site "Wijk aan Zee"]
[Date "2024.01.21"]
[Round "3.5"]
[White "Zwirs, Nico"]
[Black "Pastar, Slaven"]
[Result "1/2-1/2"]
[ECO "C43"]
[WhiteElo "2476"]
[BlackElo "2343"]
[Annotator "RC"]
[PlyCount "129"]
[EventDate "2024.01.02"]
[EventType "tourn"]
[EventCountry "NED"]
[SourceTitle "playchess.com"]
[Source "ChessBase"]
[SourceQuality "1"]
[TimeControl "40/6000+30:20/3000+30:900+30"]

1. e4 {[%emt 0:10:01]} e5 {[%emt 0:10:35]} 2. Nf3 {[%emt 0:00:06]} Nf6 {[%emt 0:00:53]} 3. d4 {[%emt 0:00:18]} Nxe4 {[%emt 0:00:57]} 4. Bd3 {[%emt 0:00:14]} Nc6 {[%emt 0:01:19]} 5. Nxe5 {[%emt 0:04:34]} Nxe5 {[%emt 0:00:56]} 6. dxe5 {[%emt 0:00:17]} Nc5 {[%emt 0:00:22]} 7. Bc4 {[%emt 0:00:24]} d6 {[%emt 0:00:41]} 8. Qf3 {[%emt 0:00:28]} Ne6 {[%emt 0:01:17]} 9. Be3 {[%emt 0:01:02]} dxe5 {[%emt 0:02:02]} 10. Nc3 {[%emt 0:00:32]} Bb4 {[%emt 0:03:59]} 11. Rd1 {[%emt 0:02:45]} Qf6 {[%emt 0:05:16]} 12. Bb5+ {[%emt 0:00:44]} Kf8 {[%emt 0:01:52]} 13. Qe4 {[%emt 0:00:45]} Bxc3+ {[%emt 0:02:19]} 14. bxc3 {[%emt 0:03:11]} h5 {[%emt 0:04:44]} 15. O-O {[%emt 0:00:58]} g6 {[%emt 0:13:52]} 16. f4 {[%emt 0:01:01]} exf4 {[%emt 0:02:55]} 17. Bc4 {[%emt 0:02:12]} Qf5 {[%emt 0:01:57]} 18. Rxf4 {[%emt 0:20:17]} Qxe4 {[%emt 0:03:59]} 19. Rxe4 {[%emt 0:00:20]} h4 {[%emt 0:13:27]} 20. Rf1 {[%emt 0:14:23]} Kg8 {[%emt 0:05:36]} 21. Bd4 {[%emt 0:01:45]} Rh6 {[%emt 0:04:49]} 22. Bf6 {[%emt 0:03:54]} g5 {[%emt 0:05:00]} 23. Re5 {[%emt 0:03:00]} Rg6 {[%emt 0:04:18]} 24. Be2 {[%emt 0:18:37]} Rh6 {[%emt 0:06:41]} 25. Bg4 {[%emt 0:03:07]} Kf8 {[%emt 0:04:43]} 26. Bxe6 {[%emt 0:09:55]} Bxe6 {[%emt 0:00:12]} 27. Rxe6 {[%emt 0:06:22]} fxe6 28. Bxg5+ {[%emt 0:00:00]} Kg7 {[%emt 0:00:24]} 29. Bxh6+ {[%emt 0:00:01]} Kxh6 {[%emt 0:00:07]} 30. Rf6+ {[%emt 0:00:02]} Kg5 {[%emt 0:00:49]} 31. Rxe6 {[%emt 0:00:01]} Rd8 {[%emt 0:00:54]} 32. Kf2 {[%emt 0:00:47]} Rd1 {[%emt 0:04:31]} 33. Re7 {[%emt 0:01:09]} Rd2+ {[%emt 0:00:38]} 34. Kf3 {[%emt 0:00:22]} Rxc2 {[%emt 0:01:29]} 35. Rxc7 {[%emt 0:00:06]} h3 {[%emt 0:01:05]} 36. gxh3 {[%emt 0:00:35]} Rxa2 {[%emt 0:02:19]} 37. Rxb7 {[%emt 0:01:06]} Rc2 {[%emt 0:01:28]} 38. h4+ {[%emt 0:03:10]} Kf5 {[%emt 0:00:29]} 39. Rc7 {[%emt 0:00:15]} Rxh2 {[%emt 0:00:29]} 40. Rc4 {[%emt 0:00:20]} Ke5 {[%emt 0:00:34]} 41. Ke3 {[%emt 0:23:03]} Kd5 {[%emt 0:24:33]} 42. Ra4 {[%emt 0:06:03]} Kc5 {[%emt 0:01:54]} 43. Kf3 {[%emt 0:11:01]} Kb6 {[%emt 0:16:20]} 44. Kg3 {[%emt 0:00:58]} Rh1 {[%emt 0:01:11]} 45. Kg4 {[%emt 0:03:19]} a5 {[%emt 0:00:39]} 46. c4 {[%emt 0:02:12]} Rg1+ {[%emt 0:03:46]} 47. Kf5 {[%emt 0:00:05]} Rh1 {[%emt 0:01:12]} 48. Kg5 {[%emt 0:00:04]} Rg1+ {[%emt 0:01:14]} 49. Kh6 {[%emt 0:00:02]} Rb1 {[%emt 0:00:24]} 50. h5 {[%emt 0:06:43]} Rb4 {[%emt 0:00:53]} 51. c5+ {[%emt 0:00:13]} Kb5 {[%emt 0:00:36]} 52. Ra1 {[%emt 0:00:30]} Rc4 {[%emt 0:00:28]} 53. Rb1+ {[%emt 0:00:24]} Kxc5 {[%emt 0:00:53]} 54. Kg5 {[%emt 0:00:57]} Rc2 {[%emt 0:00:27]} 55. Rh1 {[%emt 0:00:54]} Kb4 {[%emt 0:01:03]} 56. h6 {[%emt 0:00:09]} Rc8 {[%emt 0:00:20]} 57. Rb1+ {[%emt 0:00:12]} Ka3 {[%emt 0:00:25]} 58. h7 {[%emt 0:00:31]} a4 {[%emt 0:00:18]} 59. Rb7 {[%emt 0:01:58]} Ka2 {[%emt 0:00:31]} 60. Kf6 {[%emt 0:00:17]} a3 {[%emt 0:00:20]} 61. Rg7 {[%emt 0:15:30]} Rh8 {[%emt 0:16:21]} 62. Rb7 {[%emt 0:00:37]} Ka1 {[%emt 0:01:18]} 63. Kg7 {[%emt 0:00:29]} Rxh7+ {[%emt 0:00:12]} 64. Kxh7 {[%emt 0:00:04]} a2 {[%emt 0:00:03]} 65. Kg6 {[%emt 0:00:18]} 1/2-1/2

[Event "86th Tata Steel Tienkamp 2024"]
[Site "Wijk aan Zee"]
[Date "2024.01.22"]
[Round "4.1"]
[White "Baselmans, Luuk"]
[Black "Pijpers, Arthur"]
[Result "0-1"]
[ECO "B67"]
[WhiteElo "2323"]
[BlackElo "2441"]
[Annotator "RC"]
[PlyCount "54"]
[EventDate "2024.01.02"]
[EventType "tourn"]
[EventCountry "NED"]
[SourceTitle "playchess.com"]
[Source "ChessBase"]
[SourceQuality "1"]
[TimeControl "40/6000+30:20/3000+30:900+30"]

1. e4 {[%emt 0:10:05]} c5 {[%emt 0:10:04]} 2. Nf3 {[%emt 0:00:10]} d6 {[%emt 0:00:04]} 3. d4 {[%emt 0:00:47]} cxd4 {[%emt 0:00:43]} 4. Nxd4 {[%emt 0:00:07]} Nf6 {[%emt 0:00:05]} 5. Nc3 {[%emt 0:00:07]} Nc6 {[%emt 0:01:24]} 6. Bg5 {[%emt 0:00:56]} e6 {[%emt 0:00:08]} 7. Qd2 {[%emt 0:00:25]} a6 {[%emt 0:00:44]} 8. O-O-O {[%emt 0:00:45]} Bd7 {[%emt 0:00:16]} 9. Kb1 {[%emt 0:03:21]} Be7 {[%emt 0:09:07]} 10. f3 {[%emt 0:05:04]} Nxd4 {[%emt 0:01:25]} 11. Qxd4 {[%emt 0:00:07]} b5 {[%emt 0:02:39]} 12. Qd2 {[%emt 0:04:23]} Qc7 {[%emt 0:00:38]} 13. Bd3 {[%emt 0:01:59]} b4 {[%emt 0:11:35]} 14. Ne2 {[%emt 0:00:11]} a5 {[%emt 0:00:03]} 15. g4 {[%emt 0:01:51]} a4 {[%emt 0:09:18]} 16. h4 {[%emt 0:13:55]} O-O {[%emt 0:19:36]} 17. e5 {[%emt 0:12:48]} dxe5 {[%emt 0:03:58]} 18. Bxf6 {[%emt 0:00:43]} Bxf6 {[%emt 0:00:08]} 19. g5 {[%emt 0:00:39]} Be7 {[%emt 0:01:11]} 20. h5 {[%emt 0:02:03]} b3 {[%emt 0:05:44]} 21. Rdg1 {[%emt 0:32:01]} Rfd8 {[%emt 0:13:23]} 22. g6 {[%emt 0:02:41]} Bb5 {[%emt 0:01:45]} 23. Nc1 {[%emt 0:07:18]} bxc2+ {[%emt 0:03:44]} 24. Ka1 {[%emt 0:01:00]} Bxd3 {[%emt 0:03:06]} 25. Nxd3 {[%emt 0:00:45]} a3 {[%emt 0:01:37]} 26. Qc1 {[%emt 0:07:05]} Rxd3 {[%emt 0:01:04]} 27. h6 {[%emt 0:00:23]} fxg6 {[%emt 0:00:32]} 0-1

[Event "86th Tata Steel Tienkamp 2024"]
[Site "Wijk aan Zee"]
[Date "2024.01.22"]
[Round "4.2"]
[White "Niermann, Tristan"]
[Black "Van Foreest, Machteld"]
[Result "1-0"]
[ECO "D45"]
[WhiteElo "2413"]
[BlackElo "2363"]
[Annotator "RC"]
[PlyCount "63"]
[EventDate "2024.01.02"]
[EventType "tourn"]
[EventCountry "NED"]
[SourceTitle "playchess.com"]
[Source "ChessBase"]
[SourceQuality "1"]
[TimeControl "40/6000+30:20/3000+30:900+30"]

1. c4 {[%emt 0:10:03]} e6 {[%emt 0:10:39]} 2. Nf3 {[%emt 0:00:07]} Nf6 {[%emt 0:00:17]} 3. Nc3 {[%emt 0:00:07]} d5 {[%emt 0:00:44]} 4. e3 {[%emt 0:00:09]} c6 {[%emt 0:05:24]} 5. b3 {[%emt 0:00:21]} Bd6 {[%emt 0:00:41]} 6. Bb2 {[%emt 0:00:25]} Nbd7 {[%emt 0:01:26]} 7. Qc2 {[%emt 0:02:12]} O-O {[%emt 0:03:13]} 8. d4 {[%emt 0:01:35]} b6 {[%emt 0:04:58]} 9. Be2 {[%emt 0:00:26]} Bb7 {[%emt 0:01:11]} 10. O-O {[%emt 0:00:08]} Qe7 {[%emt 0:01:43]} 11. Rad1 {[%emt 0:09:24]} Rac8 {[%emt 0:04:01]} 12. e4 {[%emt 0:07:11]} Nxe4 {[%emt 0:11:31]} 13. Nxe4 {[%emt 0:00:13]} dxe4 {[%emt 0:00:03]} 14. Qxe4 {[%emt 0:00:38]} f5 {[%emt 0:04:24]} 15. Qe3 {[%emt 0:06:35]} Nf6 {[%emt 0:06:21]} 16. Rfe1 {[%emt 0:15:53]} Ng4 {[%emt 0:07:11]} 17. Qd2 {[%emt 0:11:41]} c5 {[%emt 0:04:09]} 18. d5 {[%emt 0:02:24]} e5 {[%emt 0:09:36]} 19. Ng5 {[%emt 0:04:31]} Nf6 {[%emt 0:02:13]} 20. Bf1 {[%emt 0:02:48]} e4 {[%emt 0:07:09]} 21. Ne6 {[%emt 0:00:25]} Ng4 {[%emt 0:11:15]} 22. h3 {[%emt 0:07:06]} e3 {[%emt 0:00:11]} 23. Rxe3 {[%emt 0:00:24]} Nxe3 {[%emt 0:01:00]} 24. Qxe3 {[%emt 0:00:15]} Rf7 {[%emt 0:02:16]} 25. Be2 {[%emt 0:01:18]} Qh4 {[%emt 0:00:41]} 26. Nxg7 {[%emt 0:01:48]} Qe4 {[%emt 0:09:50]} 27. Qxe4 {[%emt 0:04:53]} fxe4 {[%emt 0:00:02]} 28. Ne6 {[%emt 0:00:23]} Re8 {[%emt 0:01:25]} 29. Bg4 {[%emt 0:01:15]} Bc8 {[%emt 0:00:51]} 30. Re1 {[%emt 0:00:18]} Ree7 {[%emt 0:00:20]} 31. Rxe4 {[%emt 0:00:42]} Bd7 {[%emt 0:00:12]} 32. g3 {[%emt 0:00:45]} 1-0

[Event "86th Tata Steel Tienkamp 2024"]
[Site "Wijk aan Zee"]
[Date "2024.01.22"]
[Round "4.3"]
[White "Pastar, Slaven"]
[Black "Holzke, Frank"]
[Result "1/2-1/2"]
[ECO "B51"]
[WhiteElo "2343"]
[BlackElo "2460"]
[Annotator "RC"]
[PlyCount "235"]
[EventDate "2024.01.02"]
[EventType "tourn"]
[EventCountry "NED"]
[SourceTitle "playchess.com"]
[Source "ChessBase"]
[SourceQuality "1"]
[TimeControl "40/6000+30:20/3000+30:900+30"]

1. e4 {[%emt 0:10:24]} c5 {[%emt 0:10:16]} 2. Nf3 {[%emt 0:00:42]} d6 {[%emt 0:00:14]} 3. Bb5+ {[%emt 0:00:30]} Nc6 {[%emt 0:00:26]} 4. O-O {[%emt 0:01:09]} Bd7 {[%emt 0:00:24]} 5. Re1 {[%emt 0:00:31]} Nf6 {[%emt 0:00:35]} 6. c3 {[%emt 0:01:15]} a6 {[%emt 0:00:21]} 7. Bf1 {[%emt 0:01:01]} e6 {[%emt 0:00:16]} 8. d4 {[%emt 0:01:39]} cxd4 {[%emt 0:00:33]} 9. cxd4 {[%emt 0:00:34]} d5 {[%emt 0:00:12]} 10. e5 {[%emt 0:06:35]} Ne4 {[%emt 0:00:18]} 11. Nbd2 {[%emt 0:16:24]} Nxd2 {[%emt 0:01:07]} 12. Bxd2 {[%emt 0:00:18]} Be7 {[%emt 0:00:42]} 13. Rc1 {[%emt 0:11:19]} O-O {[%emt 0:00:51]} 14. Bd3 {[%emt 0:01:37]} f5 {[%emt 0:01:24]} 15. exf6 {[%emt 0:08:13]} Bxf6 {[%emt 0:00:28]} 16. Bc3 {[%emt 0:02:36]} Rc8 {[%emt 0:11:42]} 17. Bb1 {[%emt 0:04:02]} Qe7 {[%emt 0:02:59]} 18. Qd3 {[%emt 0:03:14]} g6 {[%emt 0:00:30]} 19. a3 {[%emt 0:02:59]} Qg7 {[%emt 0:01:35]} 20. Qe3 {[%emt 0:03:48]} Be7 {[%emt 0:05:05]} 21. Bd3 {[%emt 0:09:20]} Bd6 {[%emt 0:05:29]} 22. Ne5 {[%emt 0:01:55]} Nxe5 {[%emt 0:00:23]} 23. dxe5 {[%emt 0:00:07]} Bc5 {[%emt 0:00:13]} 24. Bd4 {[%emt 0:00:12]} Bxd4 {[%emt 0:00:11]} 25. Qxd4 {[%emt 0:00:08]} Bb5 {[%emt 0:01:21]} 26. Bxb5 {[%emt 0:06:48]} axb5 {[%emt 0:00:42]} 27. Rc5 {[%emt 0:04:51]} b6 {[%emt 0:13:32]} 28. Rxc8 {[%emt 0:00:25]} Rxc8 {[%emt 0:00:09]} 29. Qxb6 {[%emt 0:01:13]} Qxe5 {[%emt 0:04:07]} 30. Kf1 {[%emt 0:01:01]} Qf6 {[%emt 0:02:13]} 31. Qxe6+ {[%emt 0:02:23]} Qxe6 {[%emt 0:00:11]} 32. Rxe6 {[%emt 0:00:04]} Rc1+ {[%emt 0:05:34]} 33. Re1 {[%emt 0:00:15]} Rc2 {[%emt 0:00:07]} 34. Re2 {[%emt 0:00:10]} Rc1+ {[%emt 0:00:07]} 35. Re1 {[%emt 0:00:02]} Rc2 {[%emt 0:00:05]} 36. b4 {[%emt 0:05:39]} Kf7 {[%emt 0:09:43]} 37. Re5 {[%emt 0:00:25]} Rd2 {[%emt 0:00:36]} 38. Ke1 {[%emt 0:00:20]} Rd4 {[%emt 0:00:38]} 39. Ke2 {[%emt 0:02:54]} Kf6 {[%emt 0:00:12]} 40. f4 {[%emt 0:02:13]} h6 {[%emt 0:02:57]} 41. g3 {[%emt 0:29:15]} g5 {[%emt 0:22:11]} 42. h4 {[%emt 0:01:42]} gxf4 {[%emt 0:04:20]} 43. gxf4 {[%emt 0:00:13]} Rxf4 {[%emt 0:00:18]} 44. Rxd5 {[%emt 0:00:34]} Rxh4 {[%emt 0:00:09]} 45. Rxb5 {[%emt 0:00:21]} Rh2+ {[%emt 0:00:10]} 46. Kf1 {[%emt 0:00:38]} Ra2 {[%emt 0:04:22]} 47. Ra5 {[%emt 0:00:05]} h5 {[%emt 0:00:29]} 48. a4 {[%emt 0:02:21]} h4 {[%emt 0:13:03]} 49. b5 {[%emt 0:04:18]} h3 {[%emt 0:00:24]} 50. Kg1 {[%emt 0:00:39]} Rg2+ {[%emt 0:01:10]} 51. Kh1 {[%emt 0:00:33]} Rb2 {[%emt 0:00:07]} 52. Ra8 {[%emt 0:01:16]} Kg6 {[%emt 0:07:19]} 53. Rb8 {[%emt 0:01:07]} Kg5 {[%emt 0:05:19]} 54. b6 {[%emt 0:08:15]} Kg4 {[%emt 0:01:07]} 55. Rg8+ {[%emt 0:04:05]} Kh4 {[%emt 0:00:37]} 56. a5 {[%emt 0:00:20]} Rb5 {[%emt 0:04:19]} 57. Kg1 {[%emt 0:01:38]} Rb2 {[%emt 0:02:14]} 58. Rc8 {[%emt 0:01:59]} Rb1+ {[%emt 0:07:58]} 59. Kf2 {[%emt 0:00:11]} Rb2+ {[%emt 0:00:07]} 60. Ke3 {[%emt 0:00:31]} h2 {[%emt 0:03:17]} 61. Rh8+ {[%emt 0:16:07]} Kg3 {[%emt 0:15:21]} 62. Rxh2 {[%emt 0:00:28]} Kxh2 {[%emt 0:01:29]} 63. Kd4 {[%emt 0:00:09]} Rb5 {[%emt 0:03:23]} 64. Kc4 {[%emt 0:00:08]} Rxa5 {[%emt 0:00:05]} 65. b7 {[%emt 0:00:10]} Ra4+ {[%emt 0:00:17]} 66. Kb3 {[%emt 0:00:53]} Re4 {[%emt 0:01:04]} 67. b8=Q+ {[%emt 0:00:07]} Kg2 {[%emt 0:00:08]} 68. Kc3 {[%emt 0:00:26]} Kf3 {[%emt 0:00:09]} 69. Qf8+ {[%emt 0:00:13]} Ke3 {[%emt 0:00:12]} 70. Qf5 {[%emt 0:00:58]} Ra4 {[%emt 0:05:29]} 71. Qc5+ {[%emt 0:01:00]} Kf4 {[%emt 0:00:17]} 72. Qc7+ {[%emt 0:00:39]} Kg5 {[%emt 0:00:44]} 73. Qe5+ {[%emt 0:00:45]} Kh4 {[%emt 0:00:42]} 74. Qe7+ {[%emt 0:00:24]} Kg3 {[%emt 0:00:25]} 75. Qe1+ {[%emt 0:00:31]} Kh3 {[%emt 0:00:41]} 76. Qe6+ {[%emt 0:00:34]} Kh4 {[%emt 0:00:42]} 77. Qe7+ {[%emt 0:00:06]} Kg3 {[%emt 0:00:07]} 78. Kd3 {[%emt 0:00:12]} Rf4 {[%emt 0:01:06]} 79. Qe5 {[%emt 0:00:10]} Kg4 {[%emt 0:00:28]} 80. Ke3 {[%emt 0:00:31]} Rf3+ {[%emt 0:00:24]} 81. Ke4 {[%emt 0:00:12]} Rf1 {[%emt 0:00:12]} 82. Qg7+ {[%emt 0:00:17]} Kh4 {[%emt 0:01:02]} 83. Qc3 {[%emt 0:00:31]} Kg4 {[%emt 0:00:42]} 84. Qc8+ {[%emt 0:00:57]} Kh4 {[%emt 0:00:29]} 85. Qc4 {[%emt 0:00:16]} Rf8 {[%emt 0:00:56]} 86. Qb4 {[%emt 0:00:57]} Rf7 {[%emt 0:00:43]} 87. Ke5+ {[%emt 0:01:06]} Kg5 {[%emt 0:00:36]} 88. Qd2+ {[%emt 0:00:32]} Kg4 {[%emt 0:00:33]} 89. Qd1+ {[%emt 0:00:34]} Kg5 {[%emt 0:00:22]} 90. Qc1+ {[%emt 0:00:13]} Kh5 {[%emt 0:00:27]} 91. Qc5 {[%emt 0:00:51]} Rf1 {[%emt 0:00:55]} 92. Qb5 {[%emt 0:00:40]} Rf2 {[%emt 0:00:47]} 93. Qc6 {[%emt 0:00:28]} Rf1 {[%emt 0:00:45]} 94. Qe4 {[%emt 0:00:24]} Rf7 {[%emt 0:01:28]} 95. Qh1+ {[%emt 0:00:15]} Kg5 {[%emt 0:00:21]} 96. Qg2+ {[%emt 0:00:05]} Kh5 {[%emt 0:00:23]} 97. Qh3+ {[%emt 0:00:09]} Kg5 {[%emt 0:00:07]} 98. Qg3+ {[%emt 0:00:18]} Kh5 {[%emt 0:00:20]} 99. Ke6 {[%emt 0:00:29]} Rf8 {[%emt 0:00:23]} 100. Qc7 {[%emt 0:01:02]} Kg6 {[%emt 0:00:53]} 101. Qd7 {[%emt 0:00:35]} Kh6 {[%emt 0:00:56]} 102. Qe7 {[%emt 0:00:58]} Rf4 {[%emt 0:00:33]} 103. Ke5 {[%emt 0:00:06]} Rf1 {[%emt 0:00:40]} 104. Qh4+ {[%emt 0:00:23]} Kg7 {[%emt 0:00:22]} 105. Ke6 {[%emt 0:01:08]} Rf7 {[%emt 0:01:05]} 106. Qg5+ {[%emt 0:00:24]} Kf8 {[%emt 0:00:14]} 107. Qh6+ {[%emt 0:00:26]} Kg8 {[%emt 0:00:09]} 108. Qh5 {[%emt 0:00:42]} Ra7 {[%emt 0:00:37]} 109. Qg5+ {[%emt 0:00:12]} Kh7 {[%emt 0:00:53]} 110. Qh4+ {[%emt 0:00:14]} Kg8 {[%emt 0:00:34]} 111. Qd8+ {[%emt 0:01:00]} Kh7 {[%emt 0:00:13]} 112. Qd3+ {[%emt 0:00:32]} Kg8 {[%emt 0:00:43]} 113. Kf6 {[%emt 0:00:38]} Rf7+ {[%emt 0:00:24]} 114. Kg6 {[%emt 0:00:05]} Rg7+ {[%emt 0:00:06]} 115. Kh6 {[%emt 0:00:03]} Re7 {[%emt 0:00:29]} 116. Qd5+ {[%emt 0:00:20]} Kf8 {[%emt 0:00:20]} 117. Kg6 {[%emt 0:00:06]} Re6+ {[%emt 0:00:20]} 118. Kf5 {[%emt 0:00:17]} 1/2-1/2

[Event "86th Tata Steel Tienkamp 2024"]
[Site "Wijk aan Zee"]
[Date "2024.01.22"]
[Round "4.4"]
[White "De Winter, Arthur"]
[Black "Zwirs, Nico"]
[Result "0-1"]
[ECO "B90"]
[WhiteElo "2409"]
[BlackElo "2476"]
[Annotator "RC"]
[PlyCount "52"]
[EventDate "2024.01.02"]
[EventType "tourn"]
[EventCountry "NED"]
[SourceTitle "playchess.com"]
[Source "ChessBase"]
[SourceQuality "1"]
[TimeControl "40/6000+30:20/3000+30:900+30"]

1. e4 {[%emt 0:10:05]} c5 {[%emt 0:10:23]} 2. Nf3 {[%emt 0:00:33]} d6 {[%emt 0:00:04]} 3. d4 {[%emt 0:00:09]} cxd4 {[%emt 0:00:03]} 4. Nxd4 {[%emt 0:00:12]} Nf6 {[%emt 0:00:07]} 5. Nc3 {[%emt 0:00:06]} a6 {[%emt 0:00:04]} 6. h4 {[%emt 0:01:42]} e5 {[%emt 0:00:54]} 7. Nb3 {[%emt 0:00:10]} Be7 {[%emt 0:01:35]} 8. Be2 {[%emt 0:00:47]} Be6 {[%emt 0:01:30]} 9. f4 {[%emt 0:00:12]} b5 {[%emt 0:03:26]} 10. g4 {[%emt 0:00:06]} b4 {[%emt 0:01:51]} 11. Nd5 {[%emt 0:00:41]} Nxe4 {[%emt 0:02:55]} 12. Nxe7 {[%emt 0:00:05]} Qxe7 {[%emt 0:00:21]} 13. f5 {[%emt 0:00:04]} Qa7 {[%emt 0:01:35]} 14. Rf1 {[%emt 0:00:07]} O-O {[%emt 0:01:08]} 15. Qd3 {[%emt 0:01:43]} Bxb3 {[%emt 0:02:16]} 16. axb3 {[%emt 0:00:31]} d5 {[%emt 0:01:26]} 17. Be3 {[%emt 0:04:51]} d4 {[%emt 0:33:02]} 18. Qxe4 {[%emt 0:14:31]} dxe3 {[%emt 0:00:31]} 19. O-O-O {[%emt 0:00:54]} Nd7 {[%emt 0:02:57]} 20. Qxb4 {[%emt 0:21:50]} Nc5 {[%emt 0:02:15]} 21. Qa5 {[%emt 0:12:26]} Rac8 {[%emt 0:18:35]} 22. Kb1 {[%emt 0:02:41]} Ne4 {[%emt 0:00:19]} 23. f6 {[%emt 0:02:45]} gxf6 {[%emt 0:05:29]} 24. g5 {[%emt 0:02:15]} Qc7 {[%emt 0:10:19]} 25. Qxc7 {[%emt 0:01:52]} Rxc7 {[%emt 0:00:01]} 26. gxf6 {[%emt 0:00:28]} Nd2+ {[%emt 0:00:11]} 0-1